{"text_format":"3","workbook":"xlsx","n_sheets":3,"sheets":["Начало","Бюджет учебного заведения на ме","chart_calcs"],"not_rendered":{"charts":4,"defined_names":19},"read":"whole","date_system":"1900"}

{"sheet":"Начало","index":0,"n_rows":7,"n_cols":2,"rows_kept":7}
[null,"ОБ ЭТОМ ШАБЛОНЕ"]
[null,"Используйте лист «Бюджет учебного заведения на ме» для отслеживания доходов, расходов и движения денежных средств."]
[null,"Введите ежемесячные доходы и расходы, чтобы вычислить общие доходы и расходы."]
[null,"Движение денежных средств вычисляется автоматически, и обновляется диаграмма движения денежных средств."]
[null,"Перемещайте ползунок, чтобы получить диаграммы доходов, расходов и движения денежных средств за месяц и год."]
[null,"Примечание: "]
[null,"В столбце A листа содержатся дополнительные инструкции. Их текст намерено скрыт. Чтобы удалить этот текст, выделите столбец A и нажмите клавишу DELETE. Чтобы отобразить текст, выделите столбец A и измените цвет шрифта."]

{"sheet":"Бюджет учебного заведения на ме","index":1,"n_rows":72,"n_cols":16,"rows_kept":72,"merged":[[5,1,14,3],[5,4,14,11],[5,12,13,15],[15,1,19,15],[20,1,21,15]]}
["Создайте на этом листе бюджет студента на месяц. Ячейка справа и ячейка B1 содержат заголовок листа. Полезные инструкции о том, как использовать этот лист, содержатся в ячейках этого столбца. Дальнейшие инструкции представлены в ячейке A4.","Бюджет студента на месяц"]
[]
[]
["Надпись «Доходы» находится в ячейке справа, надпись «Расходы» — в ячейке E4, а надпись «Движение денежных средств» — в ячейке M4.",{"$f":"chart_calcs!$D$6","v":" доход за год: "},null,null,{"$f":"chart_calcs!$D$7","v":" расход за год: "},{"$nulls":7},{"$f":"chart_calcs!$D$8","v":" движение денежных средств за год: "}]
["Доходы автоматически вычисляются в ячейке справа, расходы — в ячейке E5, а движение денежных средств — в ячейке M5.",{"$f":"\" \"&chart_calcs!$F$6","v":{"$error":"#VALUE!"}},null,null,{"$f":"\" \"&chart_calcs!$F$7","v":{"$error":"#VALUE!"}},{"$nulls":7},{"$f":"\" \"&chart_calcs!$F$8","v":" 1 69 ₽"}]
["Кольцевая диаграмма, демонстрирующая сводку по доходам в ячейке справа, сводка по расходам в ячейке E6 и линейчатая диаграмма, демонстрирующая положительное и отрицательное движение денежных средств в ячейке M6, обновляются автоматически. Дальнейшие инструкции представлены в ячейке A17.","В этой ячейке расположена кольцевая диаграмма, демонстрирующая сводку по доходу за выбранный месяц или год.",null,null,"В этой ячейке расположена кольцевая диаграмма, демонстрирующая сводку по расходам за выбранный месяц или год.",{"$nulls":7},"В этой ячейке расположена линейчатая диаграмма, демонстрирующая положительное и отрицательное движение денежных средств за выбранный месяц или год."]
{"$rows_empty":9}
[null,"В этой ячейке расположен график, демонстрирующий движение денежных средств за выбранный месяц или год."]
["В ячейке справа расположен график движение денежных средств. Дальнейшие инструкции представлены в ячейке A21."]
[]
[]
[]
["Перемещайте ползунок справа, чтобы получить месячные или годовые доходы, расходы, движение денежных средств и диаграммы. Дальнейшие инструкции представлены в ячейке A25.","В этой ячейке находится ползунок."]
[]
[]
[]
["Выберите месяц в ячейке справа. Нажмите клавиши ALT+СТРЕЛКА ВНИЗ, чтобы открыть список, и используйте клавиши СТРЕЛКА ВНИЗ и ВВОД для выбора нужного варианта.","ЯНВ"]
["Выбранный период автоматически обновляется в ячейке P26.",{"$nulls":14},{"$f":"SelectedPeriod","v":{"$error":"#VALUE!"}}]
["В этой строке указываются надписи: надпись «Месячные средства после расходов» расположена в ячейке справа, месяцы — в ячейках C27–N27, «Год» — в ячейке O27 и процентное увеличение — в ячейке P27.","Месячные средства после расходов",{"$f":"FirstMonth","v":{"$error":"#VALUE!"}},{"$f":"NextMonth","v":{"$error":"#VALUE!"}},{"$f":"NextMonth","v":{"$error":"#VALUE!"}},{"$f":"NextMonth","v":{"$error":"#VALUE!"}},{"$error":"#VALUE!"},{"$error":"#VALUE!"},{"$error":"#VALUE!"},{"$error":"#VALUE!"},{"$error":"#VALUE!"},{"$error":"#VALUE!"},{"$error":"#VALUE!"},{"$error":"#VALUE!"},"ГОД  ","% УВЕЛ "]
["Надпись «Движение денежных средств» расположена в ячейке справа. Движение денежных средств за каждый месяц автоматически вычисляется в ячейках C28–N28, годовая сумма — в ячейке O28, а процентное увеличение — в ячейке P28. Спарклайн обновляется автоматически в ячейке Q28.","Движение денежных средств",{"$f":"C37-C72","v":169},69,192,199,204,{"v":-771,"d":"-771 "},124,154,{"v":-721,"d":"-721 "},109,34,{"v":-61,"d":"-61 "},{"$f":"SUM(C28:N28)","v":{"v":-299,"d":"-299 "}},{"$f":"INDEX($C28:$O28,,SelectedPeriodColumn)/INDEX($C$37:$O$37,,SelectedPeriodColumn)","v":{"$error":"#VALUE!"}}]
["Надпись «Накопленное движение денежных средств» расположена в ячейке справа. Накопленное движение денежных средств за каждый месяц автоматически вычисляется в ячейках C29–N29, годовая сумма — в ячейке O29, а процентное увеличение — в ячейке P29. Спарклайн обновляется автоматически в ячейке Q29. Дальнейшие инструкции указаны в ячейке A31.","Накопленное движение денежных средств",{"$f":"SUM($C$28:C$28)","v":169},{"$f":"SUM($C$28:D$28)","v":238},{"$f":"SUM($C$28:E$28)","v":430},{"$f":"SUM($C$28:F$28)","v":629},{"$f":"SUM($C$28:G$28)","v":833},{"$f":"SUM($C$28:H$28)","v":62},{"$f":"SUM($C$28:I$28)","v":186},{"$f":"SUM($C$28:J$28)","v":340},{"$f":"SUM($C$28:K$28)","v":{"v":-381,"d":"-381 "}},{"$f":"SUM($C$28:L$28)","v":{"v":-272,"d":"-272 "}},{"$f":"SUM($C$28:M$28)","v":{"v":-238,"d":"-238 "}},{"$f":"SUM($C$28:N$28)","v":{"v":-299,"d":"-299 "}}]
[]
["Надпись «Месячный доход» расположена в ячейке справа, месяцы — в ячейках C31–N31, «Год» — в ячейке O31, а надпись «Процентное увеличение» — в ячейке P31. Введите элементы месячных доходов в ячейки B32–B36 и месячные суммы в ячейки C32–N36. Годовой доход автоматически вычисляется в ячейках O32–O36, а процентное увеличение — в ячейках P32–P36. Дальнейшие инструкции указаны в ячейке A37.","МЕСЯЧНЫЙ ДОХОД",{"$f":"FirstMonth","v":{"$error":"#VALUE!"}},{"$f":"NextMonth","v":{"$error":"#VALUE!"}},{"$error":"#VALUE!"},{"$error":"#VALUE!"},{"$error":"#VALUE!"},{"$error":"#VALUE!"},{"$error":"#VALUE!"},{"$error":"#VALUE!"},{"$error":"#VALUE!"},{"$error":"#VALUE!"},{"$error":"#VALUE!"},{"$error":"#VALUE!"},"ГОД  ","% УВЕЛ "]
[null,"Полученная финансовая помощь (гранты, стипендии, кредиты)",0,0,750,750,750,750,750,750,750,750,750,750,{"$f":"SUM(C32:N32)","v":{"v":7500,"d":"7,500"}},{"$f":"INDEX($C32:$O32,,SelectedPeriodColumn)/INDEX($C$37:$O$37,,SelectedPeriodColumn)","v":{"$error":"#VALUE!"}}]
[null,"Заработная плата после уплаты налогов",450,450,450,450,450,450,450,450,550,350,350,350,{"v":5200,"d":"5,200"},{"$f":"INDEX($C33:$O33,,SelectedPeriodColumn)/INDEX($C$37:$O$37,,SelectedPeriodColumn)","v":{"$error":"#VALUE!"}}]
[null,"Финансовая помощь от семьи",200,200,{"v":1000,"d":"1,000"},350,350,350,350,350,350,350,350,350,{"v":4550,"d":"4,550"},{"$f":"INDEX($C34:$O34,,SelectedPeriodColumn)/INDEX($C$37:$O$37,,SelectedPeriodColumn)","v":{"$error":"#VALUE!"}}]
[null,"Снятие сбережений",500,350,150,0,0,0,0,0,0,0,0,0,{"v":1000,"d":"1,000"},{"$f":"INDEX($C35:$O35,,SelectedPeriodColumn)/INDEX($C$37:$O$37,,SelectedPeriodColumn)","v":{"$error":"#VALUE!"}}]
[null,"Прочее (алименты на ребенка, социальная помощь, подарки и т. д.)",75,75,75,75,75,75,75,75,75,75,75,75,900,{"$f":"INDEX($C36:$O36,,SelectedPeriodColumn)/INDEX($C$37:$O$37,,SelectedPeriodColumn)","v":{"$error":"#VALUE!"}}]
["Надпись «Общий доход» находится в ячейке справа. Общий доход за каждый месяц автоматически вычисляется в ячейках C37–N37, годовой доход — в ячейке O37, а процентное увеличение — в ячейке P37. Спарклайн обновляется автоматически в ячейке Q37. Дальнейшие инструкции указаны в ячейке A39.","ОБЩИЙ ДОХОД",{"$f":"SUM(C32:C36)","v":{"v":1225,"d":"1,225"}},{"v":1075,"d":"1,075"},{"v":2425,"d":"2,425"},{"v":1625,"d":"1,625"},{"v":1625,"d":"1,625"},{"v":1625,"d":"1,625"},{"v":1625,"d":"1,625"},{"v":1625,"d":"1,625"},{"v":1725,"d":"1,725"},{"v":1525,"d":"1,525"},{"v":1525,"d":"1,525"},{"v":1525,"d":"1,525"},{"v":19150,"d":"19,150"},{"$f":"INDEX($C37:$O37,,SelectedPeriodColumn)/INDEX($C$37:$O$37,,SelectedPeriodColumn)","v":{"$error":"#VALUE!"}}]
[]
["Надпись «Расходы за месяц» расположена в ячейке справа, месяцы — в ячейках C39–N39, «Год» — в ячейке O39, а надпись «Процентное увеличение» — в ячейке P39.","РАСХОДЫ ЗА МЕСЯЦ",{"$f":"FirstMonth","v":{"$error":"#VALUE!"}},{"$f":"NextMonth","v":{"$error":"#VALUE!"}},{"$error":"#VALUE!"},{"$error":"#VALUE!"},{"$error":"#VALUE!"},{"$error":"#VALUE!"},{"$error":"#VALUE!"},{"$error":"#VALUE!"},{"$error":"#VALUE!"},{"$error":"#VALUE!"},{"$error":"#VALUE!"},{"$error":"#VALUE!"},"ГОД  ","% УВЕЛ "]
["Введите или измените элемент расходов в ячейке справа и месячные суммы в ячейках C40–N43. Годовая сумма автоматически вычисляется в ячейках O40–O43, а процентное увеличение — в ячейках P40–P43. Спарклайн обновляется автоматически в ячейке Q40. Дальнейшие инструкции указаны в ячейке A45.","Проживание и питание",{"$f":"SUM(C41:C43)","v":565},565,565,565,565,565,565,565,565,565,565,565,{"$f":"SUM(C40:N40)","v":{"v":6780,"d":"6,780"}},{"$f":"INDEX($C40:$O40,,SelectedPeriodColumn)/INDEX($C$72:$O$72,,SelectedPeriodColumn)","v":{"$error":"#VALUE!"}}]
[null,null,315,315,315,315,315,315,315,315,315,315,315,315,{"$f":"SUM(C41:N41)","v":{"v":3780,"d":"3,780"}},{"$f":"INDEX($C41:$O41,,SelectedPeriodColumn)/INDEX($C$72:$O$72,,SelectedPeriodColumn)","v":{"$error":"#VALUE!"}}]
[null,null,200,200,200,200,200,200,200,200,200,200,200,200,{"$f":"SUM(C42:N42)","v":{"v":2400,"d":"2,400"}},{"$f":"INDEX($C42:$O42,,SelectedPeriodColumn)/INDEX($C$72:$O$72,,SelectedPeriodColumn)","v":{"$error":"#VALUE!"}}]
[null,null,50,50,50,50,50,50,50,50,50,50,50,50,{"$f":"SUM(C43:N43)","v":600},{"$f":"INDEX($C43:$O43,,SelectedPeriodColumn)/INDEX($C$72:$O$72,,SelectedPeriodColumn)","v":{"$error":"#VALUE!"}}]
[]
["Введите или измените элемент расходов в ячейке справа и месячные суммы в ячейках C45–N47. Годовая сумма автоматически вычисляется в ячейках O45–O47, а процентное увеличение — в ячейках P45–P47. Спарклайн обновляется автоматически в ячейке Q45. Дальнейшие инструкции указаны в ячейке A49.","Плата за обучение и сборы",{"$f":"SUM(C46:C47)","v":0},0,750,0,0,650,0,0,650,0,0,0,{"$f":"SUM(C45:N45)","v":{"v":2050,"d":"2,050"}},{"$f":"INDEX($C45:$O45,,SelectedPeriodColumn)/INDEX($C$72:$O$72,,SelectedPeriodColumn)","v":{"$error":"#VALUE!"}}]
[null,null,0,0,500,0,0,500,0,0,500,0,0,0,{"$f":"SUM(C46:N46)","v":{"v":1500,"d":"1,500"}},{"$f":"INDEX($C46:$O46,,SelectedPeriodColumn)/INDEX($C$72:$O$72,,SelectedPeriodColumn)","v":{"$error":"#VALUE!"}}]
[null,null,0,0,250,0,0,150,0,0,150,0,0,0,{"$f":"SUM(C47:N47)","v":550},{"$f":"INDEX($C47:$O47,,SelectedPeriodColumn)/INDEX($C$72:$O$72,,SelectedPeriodColumn)","v":{"$error":"#VALUE!"}}]
[]
["Введите или измените элемент расходов в ячейке справа и месячные суммы в ячейках C49–N51. Годовая сумма автоматически вычисляется в ячейках O49–O51, а процентное увеличение — в ячейках P49–P51. Спарклайн обновляется автоматически в ячейке Q49. Дальнейшие инструкции указаны в ячейке A53.","Книги и материалы",{"$f":"SUM(C50:C51)","v":0},0,325,20,20,325,10,10,400,15,15,15,{"$f":"SUM(C49:N49)","v":{"v":1155,"d":"1,155"}},{"$f":"INDEX($C49:$O49,,SelectedPeriodColumn)/INDEX($C$72:$O$72,,SelectedPeriodColumn)","v":{"$error":"#VALUE!"}}]
[null,null,0,0,225,0,0,275,0,0,325,0,0,0,{"$f":"SUM(C50:N50)","v":825},{"$f":"INDEX($C50:$O50,,SelectedPeriodColumn)/INDEX($C$72:$O$72,,SelectedPeriodColumn)","v":{"$error":"#VALUE!"}}]
[null,null,0,0,100,20,20,50,10,10,75,15,15,15,{"$f":"SUM(C51:N51)","v":330},{"$f":"INDEX($C51:$O51,,SelectedPeriodColumn)/INDEX($C$72:$O$72,,SelectedPeriodColumn)","v":{"$error":"#VALUE!"}}]
[]
["Введите или измените элемент расходов в ячейке справа и месячные суммы в ячейках C53–N57. Годовая сумма автоматически вычисляется в ячейках O53–O57, а процентное увеличение — в ячейках P53–P57. Спарклайн обновляется автоматически в ячейке Q53. Дальнейшие инструкции указаны в ячейке A59.","Транспорт",{"$f":"SUM(C54:C57)","v":224},174,174,219,174,174,274,219,174,174,224,269,{"$f":"SUM(C53:N53)","v":{"v":2473,"d":"2,473"}},{"$f":"INDEX($C53:$O53,,SelectedPeriodColumn)/INDEX($C$72:$O$72,,SelectedPeriodColumn)","v":{"$error":"#VALUE!"}}]
[null,null,30,30,30,75,30,30,30,75,30,30,30,75,{"$f":"SUM(C54:N54)","v":495},{"$f":"INDEX($C54:$O54,,SelectedPeriodColumn)/INDEX($C$72:$O$72,,SelectedPeriodColumn)","v":{"$error":"#VALUE!"}}]
[null,null,129,129,129,129,129,129,129,129,129,129,129,129,{"$f":"SUM(C55:N55)","v":{"v":1548,"d":"1,548"}},{"$f":"INDEX($C55:$O55,,SelectedPeriodColumn)/INDEX($C$72:$O$72,,SelectedPeriodColumn)","v":{"$error":"#VALUE!"}}]
[null,null,15,15,15,15,15,15,15,15,15,15,15,15,{"$f":"SUM(C56:N56)","v":180},{"$f":"INDEX($C56:$O56,,SelectedPeriodColumn)/INDEX($C$72:$O$72,,SelectedPeriodColumn)","v":{"$error":"#VALUE!"}}]
[null,null,50,0,0,0,0,0,100,0,0,0,50,50,{"$f":"SUM(C57:N57)","v":250},{"$f":"INDEX($C57:$O57,,SelectedPeriodColumn)/INDEX($C$72:$O$72,,SelectedPeriodColumn)","v":{"$error":"#VALUE!"}}]
[]
["Введите или измените элемент расходов в ячейке справа и месячные суммы в ячейках C59–N65. Годовая сумма автоматически вычисляется в ячейках O59–O65, а процентное увеличение — в ячейках P59–P65. Спарклайн обновляется автоматически в ячейке Q59. Дальнейшие инструкции указаны в ячейке A67.","Необязательные",{"$f":"SUM(C60:C65)","v":69},69,169,369,419,444,419,419,394,394,419,469,{"$f":"SUM(C59:N59)","v":{"v":4053,"d":"4,053"}},{"$f":"INDEX($C59:$O59,,SelectedPeriodColumn)/INDEX($C$72:$O$72,,SelectedPeriodColumn)","v":{"$error":"#VALUE!"}}]
[null,null,0,0,0,50,100,100,100,100,75,75,100,100,800,{"$f":"INDEX($C60:$O60,,SelectedPeriodColumn)/INDEX($C$72:$O$72,,SelectedPeriodColumn)","v":{"$error":"#VALUE!"}}]
[null,null,69,69,69,69,69,69,69,69,69,69,69,69,828,{"$f":"INDEX($C61:$O61,,SelectedPeriodColumn)/INDEX($C$72:$O$72,,SelectedPeriodColumn)","v":{"$error":"#VALUE!"}}]
[null,null,0,0,0,0,0,25,0,0,0,0,0,50,75,{"$f":"INDEX($C62:$O62,,SelectedPeriodColumn)/INDEX($C$72:$O$72,,SelectedPeriodColumn)","v":{"$error":"#VALUE!"}}]
[null,null,0,0,100,100,100,100,100,100,100,100,100,100,{"v":1000,"d":"1,000"},{"$f":"INDEX($C63:$O63,,SelectedPeriodColumn)/INDEX($C$72:$O$72,,SelectedPeriodColumn)","v":{"$error":"#VALUE!"}}]
[null,null,0,0,0,50,50,50,50,50,50,50,50,50,450,{"$f":"INDEX($C64:$O64,,SelectedPeriodColumn)/INDEX($C$72:$O$72,,SelectedPeriodColumn)","v":{"$error":"#VALUE!"}}]
[null,null,0,0,0,100,100,100,100,100,100,100,100,100,900,{"$f":"INDEX($C65:$O65,,SelectedPeriodColumn)/INDEX($C$72:$O$72,,SelectedPeriodColumn)","v":{"$error":"#VALUE!"}}]
[]
["Введите или измените элемент расходов в ячейке справа и месячные суммы в ячейках C67–N70. Годовая сумма автоматически вычисляется в ячейках O67–O70, а процентное увеличение — в ячейках P67–P70. Спарклайн обновляется автоматически в ячейке Q67. Дальнейшие инструкции указаны в ячейке A72.","Прочие расходы",{"$f":"SUM(C68:C70)","v":198},{"$f":"SUM(D68:D70)","v":198},250,253,243,238,233,258,263,268,268,268,{"$f":"SUM(C67:N67)","v":{"v":2938,"d":"2,938"}},{"$f":"INDEX($C67:$O67,,SelectedPeriodColumn)/INDEX($C$72:$O$72,,SelectedPeriodColumn)","v":{"$error":"#VALUE!"}}]
[null,null,123,123,123,123,123,123,123,123,123,123,123,123,{"$f":"SUM(C68:N68)","v":{"v":1476,"d":"1,476"}},{"$f":"INDEX($C68:$O68,,SelectedPeriodColumn)/INDEX($C$72:$O$72,,SelectedPeriodColumn)","v":{"$error":"#VALUE!"}}]
[null,null,0,0,52,55,45,40,35,60,65,70,70,70,{"$f":"SUM(C69:N69)","v":562},{"$f":"INDEX($C69:$O69,,SelectedPeriodColumn)/INDEX($C$72:$O$72,,SelectedPeriodColumn)","v":{"$error":"#VALUE!"}}]
[null,null,75,75,75,75,75,75,75,75,75,75,75,75,{"$f":"SUM(C70:N70)","v":900},{"$f":"INDEX($C70:$O70,,SelectedPeriodColumn)/INDEX($C$72:$O$72,,SelectedPeriodColumn)","v":{"$error":"#VALUE!"}}]
[]
["Надпись «Общие расходы» находится в ячейке справа. Общие расходы за каждый месяц автоматически вычисляются в ячейках C72–N72, расходы за год — в ячейке O72, а процентное увеличение — в ячейке P72. Спарклайн обновляется автоматически в ячейке Q72.","ОБЩИЕ РАСХОДЫ",{"$f":"SUM(C40,C45,C49,C53,C59,C67)","v":{"v":1056,"d":"1,056"}},{"v":1006,"d":"1,006"},{"v":2233,"d":"2,233"},{"v":1426,"d":"1,426"},{"v":1421,"d":"1,421"},{"v":2396,"d":"2,396"},{"v":1501,"d":"1,501"},{"v":1471,"d":"1,471"},{"v":2446,"d":"2,446"},{"v":1416,"d":"1,416"},{"v":1491,"d":"1,491"},{"v":1586,"d":"1,586"},{"$f":"SUM(C72:N72)","v":{"v":19449,"d":"19,449"}},{"$f":"INDEX($C72:$O72,,SelectedPeriodColumn)/INDEX($C$72:$O$72,,SelectedPeriodColumn)","v":{"$error":"#VALUE!"}}]

{"sheet":"chart_calcs","index":2,"n_rows":23,"n_cols":16,"rows_kept":23,"hidden":true}
["***Этот лист должен оставаться СКРЫТЫМ***"]
[]
[{"$nulls":3},{"$f":"IFERROR(LOWER(TEXT(VALUE(SelectedPeriod&\" 1\"),\"ММММ\")),\"год\")","v":"год"}]
[]
[{"$nulls":3},"Динамические заголовки диаграмм"]
[{"$nulls":3},{"$f":"\" доход за \"& D3 &\": \"","v":" доход за год: "},null,{"$f":"TEXT(INDEX('Бюджет учебного заведения на ме'!$C$37:$O$37,,SelectedPeriodColumn),\"# ## ₽\")","v":{"$error":"#VALUE!"}}]
[{"$nulls":3},{"$f":"\" расход за \"& D3 &\": \"","v":" расход за год: "},null,{"$f":"TEXT(INDEX('Бюджет учебного заведения на ме'!$C$72:$O$72,,SelectedPeriodColumn),\"# ## ₽\")","v":{"$error":"#VALUE!"}}]
[{"$nulls":3},{"$f":"\" движение денежных средств за \"& D3 &\": \"","v":" движение денежных средств за год: "},{"$f":"INDEX('Бюджет учебного заведения на ме'!C28:O28,ScrollBarValue)","v":169},{"$f":"TEXT(E8,\"# ## ₽\")","v":"1 69 ₽"}]
[]
[]
[]
[{"$nulls":3},{"$f":"LOWER('Бюджет учебного заведения на ме'!C27)","v":{"$error":"#VALUE!"}},{"$f":"LOWER('Бюджет учебного заведения на ме'!D27)","v":{"$error":"#VALUE!"}},{"$f":"LOWER('Бюджет учебного заведения на ме'!E27)","v":{"$error":"#VALUE!"}},{"$f":"LOWER('Бюджет учебного заведения на ме'!F27)","v":{"$error":"#VALUE!"}},{"$f":"LOWER('Бюджет учебного заведения на ме'!G27)","v":{"$error":"#VALUE!"}},{"$f":"LOWER('Бюджет учебного заведения на ме'!H27)","v":{"$error":"#VALUE!"}},{"$f":"LOWER('Бюджет учебного заведения на ме'!I27)","v":{"$error":"#VALUE!"}},{"$f":"LOWER('Бюджет учебного заведения на ме'!J27)","v":{"$error":"#VALUE!"}},{"$f":"LOWER('Бюджет учебного заведения на ме'!K27)","v":{"$error":"#VALUE!"}},{"$f":"LOWER('Бюджет учебного заведения на ме'!L27)","v":{"$error":"#VALUE!"}},{"$f":"LOWER('Бюджет учебного заведения на ме'!M27)","v":{"$error":"#VALUE!"}},{"$f":"LOWER('Бюджет учебного заведения на ме'!N27)","v":{"$error":"#VALUE!"}},{"$f":"LOWER('Бюджет учебного заведения на ме'!O27)","v":"год  "}]
[null,null,"Значение полосы прокрутки: ",1]
[null,null,"Диаграмма движения денежных средств: ",{"$f":"IF(SelectedPeriod='Бюджет учебного заведения на ме'!C$31,IF('Бюджет учебного заведения на ме'!$C$28:$O$28>=0,'Бюджет учебного заведения на ме'!$C$28:$O$28,NA()),NA())","v":{"$error":"#VALUE!"}},{"$f":"IF(SelectedPeriod='Бюджет учебного заведения на ме'!D$31,IF('Бюджет учебного заведения на ме'!$C$28:$O$28>=0,'Бюджет учебного заведения на ме'!$C$28:$O$28,NA()),NA())","v":{"$error":"#VALUE!"}},{"$f":"IF(SelectedPeriod='Бюджет учебного заведения на ме'!E$31,IF('Бюджет учебного заведения на ме'!$C$28:$O$28>=0,'Бюджет учебного заведения на ме'!$C$28:$O$28,NA()),NA())","v":{"$error":"#VALUE!"}},{"$f":"IF(SelectedPeriod='Бюджет учебного заведения на ме'!F$31,IF('Бюджет учебного заведения на ме'!$C$28:$O$28>=0,'Бюджет учебного заведения на ме'!$C$28:$O$28,NA()),NA())","v":{"$error":"#VALUE!"}},{"$f":"IF(SelectedPeriod='Бюджет учебного заведения на ме'!G$31,IF('Бюджет учебного заведения на ме'!$C$28:$O$28>=0,'Бюджет учебного заведения на ме'!$C$28:$O$28,NA()),NA())","v":{"$error":"#VALUE!"}},{"$f":"IF(SelectedPeriod='Бюджет учебного заведения на ме'!H$31,IF('Бюджет учебного заведения на ме'!$C$28:$O$28>=0,'Бюджет учебного заведения на ме'!$C$28:$O$28,NA()),NA())","v":{"$error":"#VALUE!"}},{"$f":"IF(SelectedPeriod='Бюджет учебного заведения на ме'!I$31,IF('Бюджет учебного заведения на ме'!$C$28:$O$28>=0,'Бюджет учебного заведения на ме'!$C$28:$O$28,NA()),NA())","v":{"$error":"#VALUE!"}},{"$f":"IF(SelectedPeriod='Бюджет учебного заведения на ме'!J$31,IF('Бюджет учебного заведения на ме'!$C$28:$O$28>=0,'Бюджет учебного заведения на ме'!$C$28:$O$28,NA()),NA())","v":{"$error":"#VALUE!"}},{"$f":"IF(SelectedPeriod='Бюджет учебного заведения на ме'!K$31,IF('Бюджет учебного заведения на ме'!$C$28:$O$28>=0,'Бюджет учебного заведения на ме'!$C$28:$O$28,NA()),NA())","v":{"$error":"#VALUE!"}},{"$f":"IF(SelectedPeriod='Бюджет учебного заведения на ме'!L$31,IF('Бюджет учебного заведения на ме'!$C$28:$O$28>=0,'Бюджет учебного заведения на ме'!$C$28:$O$28,NA()),NA())","v":{"$error":"#VALUE!"}},{"$f":"IF(SelectedPeriod='Бюджет учебного заведения на ме'!M$31,IF('Бюджет учебного заведения на ме'!$C$28:$O$28>=0,'Бюджет учебного заведения на ме'!$C$28:$O$28,NA()),NA())","v":{"$error":"#VALUE!"}},{"$f":"IF(SelectedPeriod='Бюджет учебного заведения на ме'!N$31,IF('Бюджет учебного заведения на ме'!$C$28:$O$28>=0,'Бюджет учебного заведения на ме'!$C$28:$O$28,NA()),NA())","v":{"$error":"#VALUE!"}},{"$f":"IF(SelectedPeriod='Бюджет учебного заведения на ме'!O$31,IF('Бюджет учебного заведения на ме'!$C$28:$O$28>=0,'Бюджет учебного заведения на ме'!$C$28:$O$28,NA()),NA())","v":{"$error":"#VALUE!"}}]
[null,null,"Накопленное: ",{"$f":"IF(SelectedPeriod='Бюджет учебного заведения на ме'!C$31,IF('Бюджет учебного заведения на ме'!$C$28:$O$28<0,'Бюджет учебного заведения на ме'!$C$28:$O$28,NA()),NA())","v":{"$error":"#VALUE!"}},{"$f":"IF(SelectedPeriod='Бюджет учебного заведения на ме'!D$31,IF('Бюджет учебного заведения на ме'!$C$28:$O$28<0,'Бюджет учебного заведения на ме'!$C$28:$O$28,NA()),NA())","v":{"$error":"#VALUE!"}},{"$f":"IF(SelectedPeriod='Бюджет учебного заведения на ме'!E$31,IF('Бюджет учебного заведения на ме'!$C$28:$O$28<0,'Бюджет учебного заведения на ме'!$C$28:$O$28,NA()),NA())","v":{"$error":"#VALUE!"}},{"$f":"IF(SelectedPeriod='Бюджет учебного заведения на ме'!F$31,IF('Бюджет учебного заведения на ме'!$C$28:$O$28<0,'Бюджет учебного заведения на ме'!$C$28:$O$28,NA()),NA())","v":{"$error":"#VALUE!"}},{"$f":"IF(SelectedPeriod='Бюджет учебного заведения на ме'!G$31,IF('Бюджет учебного заведения на ме'!$C$28:$O$28<0,'Бюджет учебного заведения на ме'!$C$28:$O$28,NA()),NA())","v":{"$error":"#VALUE!"}},{"$f":"IF(SelectedPeriod='Бюджет учебного заведения на ме'!H$31,IF('Бюджет учебного заведения на ме'!$C$28:$O$28<0,'Бюджет учебного заведения на ме'!$C$28:$O$28,NA()),NA())","v":{"$error":"#VALUE!"}},{"$f":"IF(SelectedPeriod='Бюджет учебного заведения на ме'!I$31,IF('Бюджет учебного заведения на ме'!$C$28:$O$28<0,'Бюджет учебного заведения на ме'!$C$28:$O$28,NA()),NA())","v":{"$error":"#VALUE!"}},{"$f":"IF(SelectedPeriod='Бюджет учебного заведения на ме'!J$31,IF('Бюджет учебного заведения на ме'!$C$28:$O$28<0,'Бюджет учебного заведения на ме'!$C$28:$O$28,NA()),NA())","v":{"$error":"#VALUE!"}},{"$f":"IF(SelectedPeriod='Бюджет учебного заведения на ме'!K$31,IF('Бюджет учебного заведения на ме'!$C$28:$O$28<0,'Бюджет учебного заведения на ме'!$C$28:$O$28,NA()),NA())","v":{"$error":"#VALUE!"}},{"$f":"IF(SelectedPeriod='Бюджет учебного заведения на ме'!L$31,IF('Бюджет учебного заведения на ме'!$C$28:$O$28<0,'Бюджет учебного заведения на ме'!$C$28:$O$28,NA()),NA())","v":{"$error":"#VALUE!"}},{"$f":"IF(SelectedPeriod='Бюджет учебного заведения на ме'!M$31,IF('Бюджет учебного заведения на ме'!$C$28:$O$28<0,'Бюджет учебного заведения на ме'!$C$28:$O$28,NA()),NA())","v":{"$error":"#VALUE!"}},{"$f":"IF(SelectedPeriod='Бюджет учебного заведения на ме'!N$31,IF('Бюджет учебного заведения на ме'!$C$28:$O$28<0,'Бюджет учебного заведения на ме'!$C$28:$O$28,NA()),NA())","v":{"$error":"#VALUE!"}},{"$f":"IF(SelectedPeriod='Бюджет учебного заведения на ме'!O$31,IF('Бюджет учебного заведения на ме'!$C$28:$O$28<0,'Бюджет учебного заведения на ме'!$C$28:$O$28,NA()),NA())","v":{"$error":"#VALUE!"}}]
[]
[]
[null,null,"ДАННЫЕ ДИАГРАММЫ ДОХОДОВ"]
[null,null,"Полученная финансовая помощь (гранты, стипендии, кредиты)",{"$f":"'Бюджет учебного заведения на ме'!P32","v":{"$error":"#VALUE!"}}]
[null,null,"Заработная плата после уплаты налогов",{"$f":"'Бюджет учебного заведения на ме'!P33","v":{"$error":"#VALUE!"}}]
[null,null,"Финансовая помощь от семьи",{"$f":"'Бюджет учебного заведения на ме'!P34","v":{"$error":"#VALUE!"}}]
[null,null,"Снятие сбережений",{"$f":"'Бюджет учебного заведения на ме'!P35","v":{"$error":"#VALUE!"}}]
[null,null,"Прочее (алименты на ребенка, социальная помощь, подарки и т. д.)",{"$f":"'Бюджет учебного заведения на ме'!P36","v":{"$error":"#VALUE!"}}]